bitfinex/quotes_ETHUSD_20241124
["timestamp","ask_amount","ask_price","bid_price","bid_amount"]
[1732468222977,3.02967,3300.7,3300.3,0.02959553]
[1732468223880,3.02985,3300.5,3300.3,0.02959553]
[1732468224063,0.8002,3301.3,3300.3,0.02959553]
[1732468224275,3.02987,3300.5,3300.1,0.3046]
[1732468224583,3.02986,3300.5,3300.2,0.02959553]
[1732468224945,3.02953,3300.9,3300.3,0.90899]
[1732468225142,0.8002,3301.3,3300.8,0.90885]
[1732468225459,3.02901,3301.5,3301.0,0.3046]
[1732468225669,3.02902,3301.4,3301.0,0.3046]
[1732468225842,1.158907,3301.6,3301.0,0.3046]
[1732468226177,3.02921,3301.2,3300.7,0.3046]
[1732468226400,3.02892,3301.5,3300.4,0.3046]
[1732468226608,3.02981,3300.6,3300.1,0.3046]
[1732468226747,3.02993,3300.4,3300.1,0.3046]
[1732468227350,3.03,3300.4,3299.8,0.3046]
[1732468227877,3.03,3300.4,3299.9,0.00209364]
[1732468228397,3.03,3300.4,3299.9,0.91120364]
[1732468229090,3.02995,3300.4,3299.9,0.91120364]
[1732468229248,3.02995,3300.4,3299.9,1.124201]
[1732468229587,0.7782,3300.7,3299.9,0.00209364]
[1732468229588,3.03009,3300.3,3299.9,0.00209364]
[1732468229795,3.03017,3300.2,3299.9,0.00209364]
[1732468230649,3.03025,3300.1,3299.9,0.00209364]
[1732468230959,3.03025,3300.1,3299.7,0.005]
[1732468231174,3.03036,3300.0,3299.7,0.005]
[1732468231484,3.03025,3300.1,3299.7,0.005]
[1732468231485,3.03025,3300.1,3299.8,0.00211194]
[1732468231698,3.03039,3299.9,3299.7,0.005]
[1732468231910,3.03039,3299.9,3299.8,0.00211194]
[1732468232260,3.03025,3300.1,3299.7,0.005]
[1732468232595,3.03025,3300.1,3299.8,0.00211194]
[1732468232899,3.03006,3300.3,3299.7,0.91416]
[1732468233109,3.03026,3300.1,3299.8,0.00211194]
[1732468233459,3.03026,3300.1,3299.7,0.217798]
[1732468233699,3.03006,3300.3,3299.8,0.00211194]
[1732468233856,3.03006,3300.3,3299.7,0.217798]
[1732468233857,3.03022,3300.1,3299.7,0.217798]
[1732468234064,3.03022,3300.1,3299.8,0.05960004]
[1732468234296,0.7782,3300.7,3299.8,0.05960004]
[1732468234501,3.03012,3300.2,3299.8,0.05960004]
[1732468235668,3.03026,3300.1,3299.8,0.05960004]
[1732468235862,3.03026,3300.1,3299.7,0.005]
[1732468236115,3.0301,3300.3,3299.8,0.05976017]
[1732468236603,3.0297,3300.7,3299.8,0.3046]
[1732468236768,3.02951,3300.9,3300.0,0.3046]
[1732468236971,3.02934,3301.1,3300.4,0.90895]
[1732468237165,3.02949,3300.9,3300.4,0.90895]
[1732468237607,3.02934,3301.1,3300.6,0.3046]
[1732468237857,3.02915,3301.3,3300.7,0.90889]
[1732468237997,3.02902,3301.4,3300.8,0.90885]
[1732468238195,3.0286,3301.9,3301.0,0.9088]
[1732468238398,2.33946538,3302.1,3301.0,0.9088]
[1732468238399,3.0287,3301.8,3301.1,1.21338]
[1732468238712,3.02874,3301.7,3301.2,0.05957298]
[1732468238862,3.02867,3301.8,3301.2,0.96832298]
[1732468239067,0.8058,3302.3,3301.2,0.90874]
[1732468239264,0.8058,3302.3,3301.3,0.90871]
[1732468239265,3.02847,3302.0,3301.3,0.90871]
[1732468239509,3.02847,3302.0,3301.4,0.90869]
[1732468239685,3.02857,3301.9,3301.5,0.00180099]
[1732468239888,3.02857,3301.9,3301.3,0.05742353]
[1732468240088,3.02883,3301.7,3301.4,0.00181927]
[1732468240402,3.3919745,3301.9,3301.4,0.00181927]
[1732468240586,3.0288,3301.7,3301.4,0.00181927]
[1732468240774,3.02884,3301.6,3301.1,0.3046]
[1732468241208,3.02913,3301.3,3301.2,0.05715581]
[1732468241597,3.02925,3301.2,3300.6,0.90892]
[1732468241993,3.02925,3301.2,3300.7,0.96602191]
[1732468242211,3.02925,3301.2,3300.7,0.05713191]
[1732468242522,3.02925,3301.2,3300.4,1.21356]
[1732468242723,3.02925,3301.2,3300.6,0.90892]
[1732468242893,3.83466,3301.6,3300.4,1.82216122]
[1732468243088,3.83466,3301.6,3299.7,0.03529542]
[1732468243089,0.8058,3301.4,3299.7,0.005]
[1732468243303,3.47147055,3301.3,3300.5,0.90893]
[1732468243504,3.02915,3301.3,3300.8,0.90886]
[1732468243705,3.02893,3301.5,3300.9,0.96810108]
[1732468243924,6.05794,3301.5,3300.9,1.21344]
[1732468244125,3.02913,3301.3,3300.9,0.3046]
[1732468244541,3.02893,3301.5,3301.0,0.05926108]
[1732468244824,3.02892,3301.5,3301.0,0.05926108]
[1732468245040,3.02892,3301.5,3301.0,0.90881]
[1732468245202,3.79908,3301.7,3301.0,0.90881]
[1732468245403,3.02884,3301.6,3301.1,0.05926108]
[1732468245786,3.02884,3301.6,3301.1,0.96804108]
[1732468246024,3.02893,3301.5,3301.0,0.9088]
[1732468246228,3.02893,3301.5,3301.2,0.05926108]
[1732468246733,3.0288,3301.7,3301.2,0.05926108]
[1732468246920,3.02869,3301.8,3301.0,0.9088]
[1732468246921,3.0289,3301.6,3301.0,0.9088]
[1732468247224,3.02883,3301.6,3301.3,0.05873078]
[1732468247532,3.02883,3301.6,3300.9,0.3046]
[1732468247533,3.02928,3301.2,3300.6,1.21351]
[1732468247825,3.02925,3301.2,3300.6,1.21351]
[1732468247989,3.02925,3301.2,3300.7,0.05873078]
[1732468248190,3.02901,3301.4,3300.7,0.05873078]
[1732468248390,3.02944,3301.0,3300.7,0.05873078]
[1732468248627,3.02944,3301.0,3300.6,0.3046]
[1732468248834,3.02948,3300.9,3300.6,0.3046]
[1732468249140,3.02948,3300.9,3300.7,0.05873078]
[1732468250364,3.02931,3301.1,3300.7,0.05873078]
[1732468250555,0.7703,3301.5,3300.7,0.05873078]
[1732468250839,3.02922,3301.2,3300.7,0.05873078]
[1732468251597,3.02924,3301.2,3300.7,0.05873078]
[1732468252045,3.02901,3301.4,3300.7,0.96760078]
[1732468254739,3.02848,3302.0,3301.1,0.3046]
[1732468254939,3.02848,3302.0,3301.4,0.9087]
[1732468255454,3.02794,3302.6,3301.9,1.21316]
[1732468255616,1.06052074,3303.0,3301.9,1.21316]
[1732468255617,3.02802,3302.5,3301.9,1.21316]
[1732468255818,3.02802,3302.5,3301.9,1.21314]
[1732468256327,3.02786,3302.7,3302.1,0.90849]
[1732468256501,3.02768,3302.9,3302.3,0.90843]
[1732468256733,3.02734,3303.3,3302.6,0.90835]
[1732468256976,3.02734,3303.3,3302.7,0.90834]
[1732468257566,3.10976538,3303.7,3302.5,0.3046]
[1732468257878,3.02756,3303.0,3302.5,0.3046]
[1732468258076,3.02756,3303.0,3302.6,0.00159995]
[1732468258573,3.02745,3303.2,3302.6,0.00159995]
[1732468258743,3.02745,3303.2,3302.5,1.21297]
[1732468258945,3.330205,3303.1,3302.5,1.21297]
[1732468259134,3.02746,3303.1,3302.6,0.00159995]
[1732468259335,3.02757,3303.0,3302.6,0.00159995]
[1732468259636,3.02746,3303.1,3302.6,0.00159995]
[1732468260436,3.02753,3303.1,3302.6,0.00159995]
[1732468261036,3.33801654,3303.6,3302.6,0.00159995]
[1732468261251,3.02751,3303.1,3302.6,0.00159995]
[1732468261538,3.02766,3302.9,3302.6,0.00159995]
[1732468261757,3.02782,3302.7,3302.6,0.00159995]
[1732468262080,3.79796,3302.9,3302.6,0.00159995]
[1732468262275,3.79796,3302.9,3301.5,0.3046]
[1732468262276,3.02822,3302.3,3301.5,0.3046]
[1732468262580,3.02822,3302.3,3301.6,0.96577126]
[1732468262888,3.02822,3302.3,3301.7,0.90862]
[1732468263080,3.02802,3302.5,3301.6,0.96577126]
[1732468263081,3.02835,3302.2,3301.6,0.96577126]
[1732468263375,3.02778,3302.8,3301.6,0.96577126]
[1732468263588,3.02819,3302.3,3301.7,0.90862]
[1732468263734,3.02788,3302.7,3301.8,0.90858]
[1732468263936,3.02802,3302.5,3301.8,0.90857]
[1732468264158,3.02773,3302.8,3301.9,0.0573486]
[1732468264362,3.02801,3302.5,3301.9,0.90855]
[1732468264668,3.02828,3302.2,3302.0,0.00170356]
[1732468264915,3.02837,3302.1,3301.7,0.3046]
[1732468265205,3.02848,3302.0,3301.8,0.05739015]
[1732468265500,3.02855,3301.9,3301.8,0.05739015]
[1732468265706,3.02855,3301.9,3301.3,0.3046]
[1732468266172,3.02855,3301.9,3301.3,0.516811]
[1732468266716,3.02852,3302.0,3301.4,0.90868]
[1732468267003,3.02879,3301.7,3301.5,0.05748885]
[1732468267608,3.02879,3301.7,3301.3,0.3046]
[1732468267959,3.02865,3301.8,3301.3,0.3046]
[1732468268185,3.02841,3302.1,3301.5,0.90867]
[1732468268391,3.02817,3302.4,3301.5,0.90867]
[1732468268570,3.02833,3302.2,3301.6,0.05802398]
[1732468268881,3.02833,3302.2,3301.6,0.96487866]
[1732468269211,3.02838,3302.1,3301.6,0.96485866]
[1732468269362,3.02813,3302.4,3301.7,0.90861]
[1732468269697,3.02823,3302.3,3301.7,0.90861]
[1732468269914,3.0283,3302.2,3301.8,0.36071183]
[1732468270802,3.02855,3301.9,3301.8,0.36071183]
[1732468271116,3.02855,3301.9,3301.8,0.3046]
[1732468271279,3.02868,3301.8,3301.5,0.3046]
[1732468271490,3.02855,3301.9,3301.6,0.05589361]
[1732468271491,0.7597,3301.9,3301.6,0.05589361]
[1732468271737,0.7597,3301.9,3301.1,0.3046]
[1732468271738,3.0287,3301.8,3301.1,0.3046]
[1732468271917,3.02888,3301.6,3301.2,0.0558988]
[1732468272210,3.02892,3301.5,3301.2,0.0558988]
[1732468272705,3.02878,3301.7,3301.2,0.0558988]
[1732468272914,0.7597,3302.2,3301.2,0.9646488]
[1732468273217,3.0287,3301.8,3301.2,0.0558988]
[1732468273414,3.02883,3301.6,3301.2,0.0558988]
[1732468273617,0.7597,3302.2,3301.2,0.0558988]
[1732468273818,3.02893,3301.5,3301.2,0.0558988]
[1732468274219,3.02905,3301.4,3301.2,0.0558988]
[1732468274508,3.02888,3301.6,3301.2,0.0558988]
[1732468275009,3.02893,3301.5,3301.2,0.0558988]
[1732468275599,3.0291,3301.3,3301.2,0.0558988]
[1732468276017,3.02853,3302.0,3301.2,0.0558988]
[1732468276220,3.02881,3301.7,3301.2,0.0558988]
[1732468276620,3.02889,3301.6,3301.2,0.0558988]
[1732468277235,3.02837,3302.1,3301.2,0.0558988]
[1732468277407,3.0288,3301.7,3301.2,0.0558988]
[1732468278023,3.0288,3301.7,3301.2,0.9646488]
[1732468278235,3.02866,3301.8,3301.2,0.9646488]
[1732468278416,3.02879,3301.7,3301.2,0.0558988]
[1732468278627,3.02906,3301.4,3301.2,0.0558988]
[1732468279308,3.0291,3301.3,3301.2,0.0558988]
[1732468279510,3.02906,3301.4,3301.2,0.0558988]
[1732468279727,3.02886,3301.6,3301.2,0.0558988]
[1732468279901,3.02894,3301.5,3301.2,0.0558988]
[1732468280423,3.02886,3301.6,3301.2,0.0558988]
[1732468280738,3.02903,3301.4,3301.2,0.0558988]
[1732468281233,3.02904,3301.4,3301.2,0.0558988]
[1732468281798,3.0291,3301.3,3301.2,0.0558988]
[1732468282442,3.0291,3301.3,3300.8,0.3046]
[1732468282746,6.05868,3301.1,3300.9,0.05627812]
[1732468283075,3.02938,3301.0,3300.4,0.90897]
[1732468283400,3.407828,3301.5,3300.4,0.90897]
[1732468283401,3.02915,3301.3,3300.5,0.05627812]
[1732468283595,3.02915,3301.3,3300.6,0.90889]
[1732468283800,3.02925,3301.2,3300.6,1.09630381]
[1732468284030,3.02925,3301.2,3300.7,0.05627812]
[1732468284411,3.02915,3301.3,3300.7,0.05627812]
[1732468284842,3.81645,3301.9,3300.8,1.21345]
[1732468285038,3.02907,3301.4,3300.8,1.21345]
[1732468285332,3.02872,3301.8,3301.1,0.90876]
[1732468285538,3.02876,3301.7,3301.2,0.3046]
[1732468285713,3.02876,3301.7,3301.3,0.05627812]
[1732468285914,3.02876,3301.7,3301.2,1.21335]
[1732468286121,0.7879,3302.2,3301.2,1.21335]
[1732468286122,3.02865,3301.8,3301.3,0.96499812]
[1732468286327,3.02865,3301.8,3301.4,0.21783481]
[1732468286496,3.02842,3302.1,3301.4,1.12652481]
[1732468286497,3.02855,3302.0,3301.4,1.12652481]
[1732468286698,3.02842,3302.1,3301.6,0.3046]
[1732468286918,3.81587,3302.6,3301.6,0.3046]
[1732468287166,3.0287,3301.8,3301.6,0.3046]
[1732468287328,3.02874,3301.7,3301.3,0.3046]
[1732468287520,3.0287,3301.8,3301.4,0.0561794]
[1732468287716,3.0287,3301.8,3301.3,1.21332]
[1732468287954,3.0287,3301.8,3301.4,0.0561794]
[1732468288165,3.0287,3301.8,3301.3,0.3046]
[1732468288654,3.02885,3301.6,3301.4,0.0561742]
[1732468288869,3.02892,3301.5,3301.4,0.0561742]
[1732468289167,3.02928,3301.2,3300.6,0.3046]
[1732468289514,3.02928,3301.2,3300.7,0.05607027]
[1732468289515,3.02923,3301.2,3300.7,0.05607027]
[1732468289732,3.02923,3301.2,3300.7,0.90888]
[1732468289930,3.02915,3301.3,3300.7,0.90888]
[1732468290226,3.02926,3301.2,3300.8,0.05232532]
[1732468290538,3.02904,3301.4,3300.5,0.90894]
[1732468290539,3.02899,3301.5,3300.9,1.21344]
[1732468290749,3.02899,3301.5,3301.0,0.05232532]
[1732468291556,3.0291,3301.4,3301.0,0.05232532]
[1732468291919,3.02929,3301.1,3301.0,0.05232532]
[1732468292169,3.02929,3301.1,3300.5,0.3046]
[1732468292760,3.0294,3301.0,3300.6,0.05232532]
[1732468294053,0.7879,3301.8,3300.6,0.96123532]
[1732468294458,3.02922,3301.2,3300.6,0.05232532]
[1732468294638,3.02934,3301.1,3300.6,0.05232532]
[1732468294845,3.02943,3301.0,3300.7,0.18676896]
[1732468295358,3.02943,3301.0,3300.8,0.05232532]
[1732468295536,3.02943,3301.0,3300.7,0.18676896]
[1732468295734,3.02943,3301.0,3300.8,0.05259555]
[1732468296062,3.02947,3300.9,3300.5,0.3046]
[1732468296259,5.36821538,3301.7,3300.6,0.90891]
[1732468296454,3.02929,3301.1,3300.6,0.90891]
[1732468296660,3.02943,3301.0,3300.5,0.3046]
[1732468297254,3.02943,3301.0,3300.2,0.90902]
[1732468297255,3.02965,3300.8,3300.2,1.81694627]
[1732468297568,3.02965,3300.8,3300.2,0.90792627]
[1732468297789,3.02989,3300.5,3300.2,0.3046]
[1732468298363,3.02968,3300.7,3300.2,0.3046]
[1732468298670,3.02976,3300.6,3300.2,0.3046]
[1732468299940,3.03013,3300.2,3299.8,0.3046]
[1732468300156,2.33946538,3300.9,3299.8,0.3046]
[1732468300157,2.75936068,3300.9,3299.8,0.3046]
[1732468300341,3.81791,3300.4,3299.8,0.3046]
[1732468300661,3.02991,3300.5,3299.8,1.21372]
[1732468300852,3.02991,3300.5,3299.9,0.90911]
[1732468301229,6.81751,3300.8,3299.9,0.90909]
[1732468301429,6.81751,3300.8,3299.8,0.3349012]
[1732468301430,4.74558707,3300.8,3299.8,0.3349012]
[1732468301667,3.03008,3300.3,3299.8,1.21374]
[1732468301838,6.0598,3300.5,3299.8,1.21374]
[1732468302044,3.02989,3300.5,3299.9,0.26622142]
[1732468302469,3.03003,3300.3,3299.9,0.212789]
[1732468302676,3.02989,3300.5,3299.9,0.212789]
[1732468302872,3.03004,3300.3,3299.8,0.3046]
[1732468303073,3.03004,3300.3,3300.0,0.05343242]
[1732468303243,3.03004,3300.3,3299.8,1.21374]
[1732468303571,3.03003,3300.3,3299.8,0.3046]
[1732468303881,3.03003,3300.3,3299.9,0.05357281]
[1732468304031,3.03021,3300.1,3299.9,0.05357281]
[1732468304368,3.03003,3300.3,3300.0,0.05357281]
[1732468304536,3.03012,3300.2,3299.8,0.3046]
[1732468304738,3.03003,3300.3,3299.9,0.05361442]
[1732468304940,3.03003,3300.3,3299.8,1.21374]
[1732468305243,3.03015,3300.2,3299.9,0.05361442]
[1732468305651,3.03015,3300.2,3299.8,0.51739]
[1732468306844,3.03024,3300.1,3299.8,0.3046]
[1732468307278,3.03024,3300.1,3299.9,0.05358322]
[1732468307964,3.0303,3300.0,3299.9,0.05358322]
[1732468308145,3.0303,3300.0,3299.7,0.005]
[1732468308146,3.03041,3299.9,3299.7,0.005]
[1732468308485,3.03041,3299.9,3299.8,0.05361442]
[1732468308848,3.03048,3299.8,3299.7,0.005]
[1732468309268,3.82348,3299.8,3299.7,0.005]
[1732468311895,6.82348,3299.8,3299.7,0.005]
[1732468312097,3.03124,3299.0,3298.4,1.21913]
[1732468312391,0.793,3299.2,3298.5,0.05433739]
[1732468312556,0.793,3299.5,3298.6,0.90945]
[1732468312755,0.985389,3299.7,3298.7,0.3096]
[1732468312989,3.03034,3300.0,3299.2,0.90931]
[1732468313194,0.793,3300.1,3299.5,0.90922]
[1732468313571,3.82327,3300.1,3299.6,0.05433739]
[1732468314619,3.03039,3299.9,3299.6,0.05433739]
[1732468314895,3.715756,3299.9,3299.6,0.05433739]
[1732468315062,3.03064,3299.7,3299.1,0.3096]
[1732468315675,3.03079,3299.5,3299.1,0.3096]
[1732468315893,3.03079,3299.5,3298.8,0.3096]
[1732468316103,3.03091,3299.4,3298.8,1.219]
[1732468316753,3.0,3300.0,3299.3,0.90928]
[1732468316954,3.0303,3300.0,3299.2,0.9093]
[1732468317182,3.03053,3299.8,3299.2,0.9093]
[1732468317491,3.4096,3300.0,3299.4,0.90923]
[1732468317492,6.06068,3300.0,3299.4,0.90923]
[1732468317660,3.03039,3299.9,3299.4,0.90923]
[1732468317862,3.03052,3299.8,3299.2,0.90929]
[1732468318061,3.03062,3299.7,3299.2,0.90929]
[1732468318279,3.03073,3299.6,3299.1,0.3096]
[1732468318480,3.03077,3299.5,3299.0,0.90936]
[1732468318691,3.03088,3299.4,3298.9,0.90938]
[1732468319069,3.03099,3299.3,3298.8,1.21902]
[1732468319271,0.303088,3299.4,3298.8,1.21899]
[1732468319480,3.03059,3299.7,3298.8,1.219]
[1732468319798,3.03076,3299.5,3299.0,0.90934]
[1732468320164,3.03076,3299.5,3298.8,2.12839]
[1732468320365,3.03076,3299.5,3298.8,1.21899]
[1732468320629,3.03076,3299.5,3298.8,2.12839]
[1732468320808,3.03092,3299.4,3298.8,1.219]
[1732468321097,0.606159,3299.4,3298.9,0.90937]
[1732468321310,3.03076,3299.5,3298.9,1.2125]
[1732468321602,3.0306,3299.7,3299.1,1.21244]
[1732468321976,3.03067,3299.6,3299.1,1.21244]
[1732468322766,3.03032,3300.0,3299.0,0.3096]
[1732468323097,3.03039,3299.9,3299.2,1.21239]
[1732468323466,3.03039,3299.9,3299.3,1.21236]
[1732468323666,6.06087,3299.9,3299.3,1.26714477]
[1732468323988,0.4205722,3299.9,3299.3,0.05478477]
[1732468324167,0.7698,3299.5,3299.3,0.05478477]
[1732468324370,3.03095,3299.3,3298.8,1.52216]
[1732468324574,3.03095,3299.3,3298.9,0.05473273]
[1732468324976,3.80063,3299.5,3298.9,0.05473273]
[1732468325181,3.03086,3299.4,3298.8,1.52216]
[1732468325530,0.7698,3299.5,3298.9,0.05473273]
[1732468325816,3.03083,3299.5,3298.9,0.05473273]
[1732468326019,3.80032,3299.8,3298.9,1.546163]
[1732468326216,3.03058,3299.7,3299.1,1.21243]
[1732468326597,3.03052,3299.8,3299.2,0.05477956]
[1732468326901,3.03059,3299.7,3299.2,0.05477956]
[1732468327341,3.03077,3299.5,3299.2,0.05477956]
[1732468327548,3.03094,3299.3,3299.2,0.05477956]
[1732468327838,3.03105,3299.2,3298.7,1.21258]
[1732468328238,3.03105,3299.2,3298.8,0.05469631]
[1732468328741,3.03105,3299.2,3298.7,1.21258]
[1732468328945,3.83183,3299.4,3298.9,0.05469631]
[1732468329246,3.03095,3299.3,3299.0,0.05469631]
[1732468329630,3.03095,3299.3,3298.8,1.21256]
[1732468329943,3.03095,3299.3,3299.1,0.05469631]
[1732468330097,3.03104,3299.2,3298.7,1.21259]
[1732468330745,3.03095,3299.3,3298.7,1.21259]
[1732468330896,0.8009,3299.4,3298.6,0.3096]
[1732468331103,3.03072,3299.6,3298.7,1.21256]
[1732468331330,3.03067,3299.6,3298.7,1.21256]
[1732468331643,3.0309,3299.4,3298.8,1.21254]
[1732468331991,3.0309,3299.4,3298.9,1.21252]
[1732468332143,3.03092,3299.4,3298.9,1.21252]
[1732468332327,3.031,3299.3,3298.7,2.42516]
[1732468332636,3.031,3299.3,3298.8,1.21256]
[1732468333312,3.03072,3299.6,3298.9,1.21251]
[1732468333501,0.383162,3299.5,3298.9,1.21251]
[1732468333698,0.383162,3299.5,3299.1,1.21245]
[1732468334013,0.8009,3299.7,3299.1,1.21245]
[1732468334188,3.83149,3299.7,3299.1,1.21243]
[1732468334388,3.83149,3299.7,3299.1,1.21242]
[1732468334613,6.88931,3300.0,3299.2,1.52199]
[1732468334885,3.03034,3300.0,3299.4,1.21232]
[1732468335127,3.03022,3300.1,3299.6,1.21226]
[1732468335434,3.85877,3300.2,3299.2,0.3096]
[1732468335435,3.03037,3300.0,3299.5,1.2123]
[1732468335587,0.385877,3300.1,3299.6,1.21226]
[1732468335787,0.385877,3300.1,3299.5,1.2123]
[1732468336027,3.416087,3300.1,3299.6,1.21226]
[1732468336406,0.385877,3300.1,3299.6,1.21226]
[1732468336597,3.58022,3300.1,3299.6,1.21226]
[1732468337109,3.58007,3300.3,3299.8,0.3096]
[1732468337294,3.57998,3300.4,3299.8,1.52178]
[1732468337635,0.61980454,3300.3,3299.9,0.05466514]
[1732468338142,3.85821,3300.8,3300.1,1.21208]
[1732468338296,3.02972,3300.7,3300.1,1.21206]
[1732468338494,0.688793,3300.6,3299.8,0.3096]
[1732468338724,3.02991,3300.5,3300.2,0.05461832]
[1732468339038,0.6748383,3300.5,3300.0,1.21208]
[1732468339388,0.6748383,3300.5,3300.1,0.05461832]
[1732468339596,0.8286,3300.8,3300.0,1.21208]
[1732468339597,3.57976,3300.6,3300.0,1.21208]
[1732468339833,3.57976,3300.6,3300.1,0.05446749]
[1732468340029,3.03006,3300.3,3300.1,0.05446749]
[1732468340235,3.333116,3300.2,3300.1,0.05446749]
[1732468340408,0.55,3300.4,3299.8,0.3096]
[1732468340594,0.55,3300.4,3299.9,0.05446749]
[1732468340793,0.55,3300.4,3299.8,0.3096]
[1732468340794,3.03018,3300.2,3299.8,0.3096]
[1732468341233,0.59193554,3300.3,3299.8,0.3096]
[1732468341400,0.55,3300.4,3299.9,0.05461832]
[1732468341593,0.55,3300.4,3299.9,0.9091]
[1732468341790,0.55,3300.4,3300.0,0.05462353]
[1732468343135,3.57995,3300.4,3300.0,0.05462353]
[1732468343295,1.210986,3300.4,3299.8,0.3096]
[1732468343634,3.03049,3299.8,3299.4,0.3096]
[1732468343926,3.03049,3299.8,3299.1,0.3096]
[1732468344136,3.03058,3299.7,3299.5,0.05457151]
[1732468344350,3.03038,3300.0,3299.2,0.90928]
[1732468344490,3.03054,3299.8,3299.6,0.05412404]
[1732468344694,0.55,3299.7,3299.3,0.90928]
[1732468344928,0.55,3299.7,3299.1,1.21891]
[1732468345099,3.58058,3299.7,3299.1,1.40049003]
[1732468345303,3.03069,3299.6,3299.1,0.3096]
[1732468345692,0.55,3299.7,3299.1,0.3096]
[1732468345891,3.03091,3299.4,3299.1,0.3096]
[1732468346135,3.031,3299.3,3298.8,0.3096]
[1732468346347,0.606177,3299.3,3298.8,0.3096]
[1732468346638,3.03128,3299.0,3298.5,0.3096]
[1732468346995,3.0314,3298.9,3298.5,0.3096]
[1732468347930,3.81259,3299.1,3298.5,0.3096]
[1732468348135,0.7814,3299.1,3298.5,0.3096]
[1732468348436,3.03124,3299.0,3298.5,0.3096]
[1732468348630,3.03122,3299.0,3298.5,1.21909]
[1732468349045,3.03136,3298.9,3298.5,0.3096]
[1732468349222,0.7814,3299.1,3298.1,0.9096]
[1732468349223,0.55,3299.0,3298.1,0.3096]
[1732468349407,0.55,3298.9,3298.1,0.3096]
[1732468349605,0.491253,3299.0,3298.1,0.3096]
[1732468349606,3.0316,3298.6,3298.1,0.3096]
[1732468350297,3.0316,3298.6,3297.7,0.90971]
[1732468350298,3.03194,3298.3,3297.7,1.2193]
[1732468350598,3.03179,3298.4,3297.7,0.3096]
[1732468350844,2.33946538,3298.5,3297.7,0.3096]
[1732468351048,0.55,3298.2,3297.7,0.3096]
[1732468351276,3.0321,3298.1,3297.8,0.05493064]
[1732468351540,3.03232,3297.8,3297.4,0.1493716]
[1732468351740,3.03221,3298.0,3297.4,1.0591716]
[1732468352000,0.55,3298.2,3297.8,0.90969]
[1732468352142,0.7814,3298.5,3297.8,0.90969]
[1732468352340,3.8131,3298.5,3297.9,0.36469205]
[1732468352571,3.03177,3298.4,3297.9,0.3096]
[1732468352880,0.684487,3298.4,3297.9,0.3096]
[1732468353085,3.03229,3297.9,3297.5,0.3096]
[1732468353245,3.03229,3297.9,3297.4,0.1493716]
[1732468353449,3.03234,3297.8,3297.6,0.05513371]
[1732468353784,3.03234,3297.8,3297.4,0.1493716]
[1732468354079,3.03257,3297.6,3297.4,0.1493716]
[1732468354287,3.5826,3297.5,3297.4,0.1493716]
[1732468354493,0.55,3297.5,3297.4,0.1493716]
[1732468354698,0.55,3297.7,3297.4,0.1493716]
[1732468354856,1.0548309,3297.7,3297.4,0.1493716]
[1732468355064,3.0326,3297.5,3297.4,0.1493716]
[1732468355400,3.5826,3297.5,3297.4,0.0993716]
[1732468355598,3.5826,3297.5,3297.4,0.15609831]
[1732468355786,0.55,3297.6,3297.4,0.15609831]
[1732468356095,0.908242,3297.6,3297.4,0.15609831]
[1732468356263,3.940762,3297.6,3297.4,0.15609831]
[1732468356461,0.908242,3297.6,3297.4,0.15609831]
[1732468356657,3.5826,3297.5,3297.4,0.0993716]
[1732468356877,0.55,3297.5,3297.4,0.0993716]
[1732468357093,0.55,3297.6,3297.4,0.0993716]
[1732468357293,3.0326,3297.5,3297.4,0.0993716]
[1732468357495,4.364,3297.5,3297.4,0.0993716]
[1732468358245,7.364,3297.5,3297.4,0.0993716]
[1732468359626,4.364,3297.5,3297.4,0.0993716]
[1732468361015,0.7814,3297.8,3297.4,0.0993716]
[1732468362787,0.55,3297.7,3297.4,0.0993716]
[1732468362994,0.55,3297.7,3297.4,1.0091716]
[1732468363238,0.55,3297.7,3297.4,0.0993716]
[1732468363523,0.55,3297.9,3297.5,0.05223486]
[1732468364089,0.55,3297.9,3297.4,1.0091516]
[1732468364592,0.55,3297.9,3297.4,0.0993716]
[1732468364845,3.03259,3297.6,3297.4,0.0993716]
[1732468365124,3.5826,3297.5,3297.4,0.0993716]
[1732468365495,4.3934,3297.5,3297.4,0.0993716]
[1732468367559,0.55,3297.5,3297.4,0.0993716]
[1732468367956,0.55,3297.7,3297.4,0.0993716]
[1732468368385,3.15026538,3298.1,3297.4,1.0091716]
[1732468368541,0.23394654,3298.0,3297.4,1.0091716]
[1732468368742,0.23394654,3298.0,3297.5,0.96021201]
[1732468368987,3.26608654,3298.0,3297.4,1.0091516]
[1732468369154,0.23394654,3298.0,3297.6,0.05045201]
[1732468369353,3.03227,3297.9,3297.4,0.0993716]
[1732468369605,3.03227,3297.9,3297.7,0.05045201]
[1732468369754,2.93277,3297.9,3297.4,0.0993716]
[1732468370506,3.58233,3297.8,3297.4,0.0993716]
[1732468370659,0.55,3297.9,3297.4,0.0993716]
[1732468370877,0.55,3298.0,3297.4,0.0993716]
[1732468371082,0.55,3298.0,3297.6,1.21934]
[1732468371308,3.15026538,3298.4,3298.0,0.90962]
[1732468371475,3.03159,3298.6,3297.7,0.05045201]
[1732468371674,0.8108,3298.7,3298.0,0.90962]
[1732468371904,0.8108,3298.7,3298.2,0.90958]
[1732468372267,0.8108,3298.7,3298.3,0.96000201]
[1732468372801,3.84206,3299.0,3298.5,0.90949]
[1732468373017,3.03137,3298.9,3298.3,0.05045201]
[1732468373157,3.03141,3298.8,3298.2,1.21917]
[1732468373357,3.03141,3298.8,3298.4,0.05045201]
[1732468373602,3.03141,3298.8,3298.2,0.3096]
[1732468373781,3.03141,3298.8,3298.2,1.21918]
[1732468373782,3.81088305,3298.8,3298.2,1.21918]
[1732468374247,3.81088305,3298.8,3298.0,0.90963]